fUSD/lending_fUSD_20260218
["ID","MTS","AMOUNT","RATE_DAILY","PERIOD"]
[405891452,1771398641239,-570.01,0.00017533,2]
[405891454,1771398641248,-1497.4,0.00017534,2]
[405891456,1771398641257,-841.0,0.00017534,2]
[405891458,1771398641267,-1000.0,0.00017534,2]
[405891460,1771398641276,-300.0,0.00017539,2]
[405891462,1771398641285,-666.0,0.00017539,2]
[405891464,1771398641294,-300.0,0.00017539,2]
[405891466,1771398641303,-300.0,0.00017539,2]
[405891468,1771398641311,-1066.01,0.00017539,2]
[405891470,1771398641322,-1066.01,0.00017539,2]
[405891472,1771398641331,-1066.01,0.00017539,2]
[405891474,1771398641340,-1066.01,0.00017539,2]
[405891476,1771398641349,-1066.01,0.00017539,2]
[405891478,1771398641360,-1066.09097743,0.00017539,2]
[405891480,1771398641369,-500.0,0.00017539,2]
[405891482,1771398641379,-500.0,0.00017539,2]
[405891484,1771398641392,-408.80120216,0.00017539,2]
[405891487,1771398641403,-1294.69,0.00017539,2]
[405891489,1771398641414,-1294.69,0.00017539,2]
[405891491,1771398641425,-1294.69,0.00017539,2]
[405891493,1771398641435,-1294.69,0.00017539,2]
[405891495,1771398641444,-1294.69,0.00017539,2]
[405891497,1771398641453,-1294.91839473,0.00017539,2]
[405891499,1771398641462,-737.29,0.00017539,2]
[405891501,1771398641471,-737.29,0.00017539,2]
[405891503,1771398641481,-737.29,0.00017539,2]
[405891505,1771398641490,-737.29,0.00017539,2]
[405891507,1771398641498,-737.29,0.00017539,2]
[405891509,1771398641508,-737.29,0.00017539,2]
[405891510,1771398641518,-683.35,0.00017539,2]
[405891511,1771398641528,-683.35,0.00017539,2]
[405891512,1771398641537,-683.35,0.00017539,2]
[405891513,1771398641546,-683.35,0.00017539,2]
[405891514,1771398641555,-683.35,0.00017539,2]
[405891515,1771398641565,-683.5,0.00017539,2]
[405891516,1771398641573,-1330610.4059,0.0001754,2]
[405891517,1771398641582,-151.0,0.0001754,2]
[405891518,1771398641591,-248.905607,0.0001754,2]
[405891519,1771398641600,-151.0,0.0001754,2]
[405891521,1771398641609,-151.0,0.0001754,2]
[405891522,1771398641617,-151.0,0.0001754,2]
[405891523,1771398641627,-151.0,0.0001754,2]
[405891524,1771398641638,-276.798836,0.0001754,2]
[405891525,1771398641647,-153.474754,0.0001754,2]
[405891526,1771398641656,-203.812919,0.0001754,2]
[405891527,1771398641665,-203.812919,0.0001754,2]
[405891528,1771398641675,-203.812919,0.0001754,2]
[405891529,1771398641685,-203.812919,0.0001754,2]
[405891530,1771398641694,-151.0,0.0001754,2]
[405891531,1771398641704,-151.0,0.0001754,2]
[405891532,1771398641713,-151.0,0.0001754,2]
[405891533,1771398641723,-151.0,0.0001754,2]
[405891534,1771398641732,-151.0,0.0001754,2]
[405891535,1771398641742,-151.0,0.0001754,2]
[405891536,1771398641752,-151.0,0.0001754,2]
[405891537,1771398641761,-1069.0,0.00017547,2]
[405891538,1771398641770,-150.0,0.00017547,2]
[405891539,1771398641779,-1069.0,0.00017573,2]
[405891540,1771398641789,-581.0,0.00017587,3]
[405891541,1771398641799,-7238.9526857,0.0001764,2]
[405891542,1771398641808,-150.0,0.00017647,2]
[405891543,1771398641817,-150.0,0.00017647,2]
[405891544,1771398641826,-150.0,0.00017647,2]
[405891545,1771398641835,-150.0,0.00017647,2]
[405891546,1771398641844,-150.0,0.00017647,2]
[405891547,1771398641853,-150.0,0.00017647,2]
[405891548,1771398641862,-150.0,0.00017647,2]
[405891549,1771398641870,-1164.0,0.00017647,2]
[405891550,1771398641880,-3492.0,0.00017647,2]
[405891551,1771398641889,-1275.0,0.00017647,2]
[405891552,1771398641898,-1209.0,0.00017647,2]
[405891553,1771398641907,-2452.0,0.00017647,2]
[405891554,1771398641916,-1069.0,0.00017699,2]
[405891555,1771398641926,-213.74,0.00017723,2]
[405891556,1771398641935,-300.0,0.00017744,2]
[405891557,1771398641944,-260.4103811,0.00017751,2]
[405891558,1771398641953,-1000.0,0.00017778,2]
[405891559,1771398641963,-1000.0,0.00017781,2]
[405891560,1771398641972,-2000.0,0.000178,2]
[405891561,1771398641982,-1069.0,0.00017803,2]
[405891562,1771398641991,-213.74,0.00017807,2]
[405891563,1771398642001,-1497.4,0.00017808,2]
[405891564,1771398642010,-150.0,0.00017808,2]
[405891565,1771398642020,-500.0,0.00017808,2]
[405891566,1771398642030,-500.0,0.00017808,2]
[405891567,1771398642039,-500.0,0.00017808,2]
[405891568,1771398642048,-500.0,0.00017808,2]
[405891569,1771398642057,-500.0,0.00017808,2]
[405891570,1771398642067,-500.0,0.00017808,2]
[405891571,1771398642076,-500.0,0.00017808,2]
[405891572,1771398642085,-500.0,0.00017808,2]
[405891573,1771398642095,-500.0,0.00017808,2]
[405891574,1771398642104,-500.0,0.00017808,2]
[405891575,1771398642113,-500.0,0.00017808,2]
[405891576,1771398642122,-500.0,0.00017808,2]
[405891577,1771398642131,-500.0,0.00017808,2]
[405891578,1771398642140,-591.70650642,0.00017808,2]
[405891579,1771398642153,-591.70650642,0.00017808,2]
[405891580,1771398642163,-591.70650642,0.00017808,2]
[405891581,1771398642173,-591.70650642,0.00017808,2]
[405891582,1771398642183,-591.70650642,0.00017808,2]
[405891583,1771398642195,-591.70650642,0.00017808,2]
[405891584,1771398642205,-591.70650642,0.00017808,2]
[405891585,1771398642214,-591.70650642,0.00017808,2]
[405891586,1771398642225,-591.70650642,0.00017808,2]
[405891587,1771398642235,-591.70650642,0.00017808,2]
[405891588,1771398642245,-591.70650642,0.00017808,2]
[405891589,1771398642254,-591.70650642,0.00017808,2]
[405891590,1771398642263,-591.70650642,0.00017808,2]
[405891591,1771398642274,-685.68342217,0.00017808,2]
[405891592,1771398642284,-685.68342217,0.00017808,2]
[405891593,1771398642294,-841.0,0.00017808,2]
[405891594,1771398642303,-1000.0,0.00017808,2]
[405891596,1771398642314,-800.0,0.00017808,2]
[405891598,1771398642323,-1069.0,0.00017811,2]
[405891600,1771398642334,-2000.0,0.0001782,2]
[405891602,1771398642343,-2000.0,0.0001782,2]
[405891604,1771398642353,-2751.41944578,0.0001782,2]
[405891605,1771398642362,-6855.60616889,0.0001783,2]
[405891606,1771398642372,-167.73514655,0.00017831,2]
[405891607,1771398642381,-500.0,0.00017855,2]
[405891608,1771398642391,-500.0,0.00017856,2]
[405891609,1771398642400,-200.0,0.00017856,2]
[405891610,1771398642410,-150.0,0.00017863,2]
[405891611,1771398642420,-1069.0,0.0001788,2]
[405891612,1771398642430,-783.30218942,0.00017895,2]
[405891613,1771398642440,-300.0,0.00017899,2]
[405891614,1771398642450,-3852.86705749,0.000179,2]
[405891615,1771398642460,-860.39241931,0.000179,2]
[405891616,1771398642470,-860.39241931,0.000179,2]
[405891618,1771398642480,-860.39241931,0.000179,2]
[405891620,1771398642491,-860.39241931,0.000179,2]
[405891622,1771398642501,-860.39241931,0.000179,2]
[405891623,1771398642510,-2000.0,0.000179,2]
[405891624,1771398642520,-379.23651681,0.000179,2]
[405891625,1771398642530,-150.43385006,0.000179,2]
[405891626,1771398642539,-150.0,0.00017918,2]
[405891627,1771398642549,-1000.0,0.00017918,2]
[405891628,1771398642560,-402.48962576,0.0001797,2]
[405891629,1771398642570,-400.0,0.0001797,2]
[405891630,1771398642579,-407.23540886,0.0001797,2]
[405891631,1771398642589,-150.0,0.00017972,2]
[405891632,1771398642598,-570.01,0.00017981,2]
[405891633,1771398642607,-570.01,0.00017981,2]
[405891634,1771398642617,-570.01,0.00017981,2]
[405891635,1771398642626,-570.01,0.00017981,2]
[405891636,1771398642636,-570.08378707,0.00017981,2]
[405891637,1771398642646,-209.40437684,0.00017981,4]
[405891638,1771398642656,-217.15233878,0.00017981,4]
[405891639,1771398642665,-225.18697532,0.00017981,4]
[405891640,1771398642675,-217.15233878,0.00017981,4]
[405891641,1771398642684,-578.20924308,0.00017981,4]
[405891642,1771398642695,-300.0,0.00017987,2]
[405891643,1771398642705,-300.0,0.00017994,2]
[405891644,1771398642715,-667337.4392593,0.00017995,2]
[405891645,1771398642725,-24688.04839416,0.00017995,2]
[405891646,1771398643369,-316.79284104,0.00017995,2]
[405891647,1771398643380,-151.0,0.00017995,2]
[405891648,1771398643391,-145.09729153,0.00017995,2]
[405891649,1771398643418,-83.77266347,0.00017995,2]
[405891650,1771398643428,-151.0,0.00017995,2]
[405891651,1771398643439,-151.0,0.00017995,2]
[405891652,1771398643448,-151.0,0.00017995,2]
[405891653,1771398643460,-203.812919,0.00017995,2]
[405891654,1771398643470,-7.42408308,0.00017995,2]
[405891655,1771398643483,-196.38883592,0.00017995,2]
[405891656,1771398643495,-203.812919,0.00017995,2]
[405891657,1771398643506,-203.812919,0.00017995,2]
[405891658,1771398643517,-151.0,0.00017995,2]
[405891659,1771398643527,-151.0,0.00017995,2]
[405891660,1771398643780,-151.0,0.00017995,2]
[405891661,1771398643790,-151.0,0.00017995,2]
[405891662,1771398643799,-151.0,0.00017995,2]
[405891663,1771398643808,-151.0,0.00017995,2]
[405891664,1771398643818,-151.0,0.00017995,2]
[405891665,1771398643828,-4341.66644587,0.00017995,4]
[405891666,1771398643841,-750.71032122,0.00017995,4]
[405891667,1771398643853,-474.202935,0.00017995,4]
[405891668,1771398643867,-1901.0,0.00017995,4]
[405891669,1771398643878,-265.84703492,0.00017995,4]
[405891670,1771398643890,-12768.21783644,0.00017995,4]
[405891671,1771398643900,-4970.86930366,0.00017995,4]
[405891672,1771398643912,-12979.42691393,0.00017995,4]
[405891673,1771398644910,-151.0,0.00010264,2]
[405891674,1771398644919,-167.33946284,0.00010367,2]
[405891675,1771398644928,-151.0,0.0001172,2]
[405891676,1771398644938,-165.26007382,0.00013699,2]
[405891677,1771398644947,-6126.94540905,0.00014046,2]
[405891678,1771398644956,-5973.0,0.00014647,2]
[405891679,1771398644966,-10995.71237961,0.00015575,2]
[405891680,1771398644975,-10995.71237961,0.00016737,2]
[405891681,1771398644985,-151.0,0.00016756,2]
[405891682,1771398644996,-151.0,0.0001754,2]
[405891683,1771398645006,-270.423194,0.0001754,2]
[405891684,1771398645015,-5973.0,0.00017647,2]
[405891685,1771398645024,-268.92645475,0.00017698,2]
[405891686,1771398645034,-6126.94540905,0.000179,2]
[405891689,1771398645044,-151.0,0.00017995,2]
[405891691,1771398645053,-59828.66451303,0.00017995,4]
[405891693,1771398645062,-150.0,0.00017999,2]
[405891695,1771398645072,-224.31394405,0.00017999,2]
[405891697,1771398645081,-150.0,0.00017999,2]
[405891699,1771398645090,-150.0,0.00017999,2]
[405891701,1771398645100,-176.3278099,0.00017999,2]
[405891703,1771398645110,-7015.91951527,0.00017999,2]
[405891705,1771398645120,-365993.75750526,0.00017999,2]
[405891707,1771398645130,-1000.0,0.00018,2]
[405891709,1771398645139,-1000.0,0.00018,2]
[405891711,1771398645148,-1000.0,0.00018,2]
[405891712,1771398645162,-609.41578164,0.00018,2]
[405891713,1771398645173,-276548.99145204,0.00018,2]
[405891714,1771398645185,-1399.84193708,0.00018,2]
[405891715,1771398645216,-852068.27792871,0.00018,2]
[405891716,1771398645232,-532391.23994815,0.00018,2]
[405891717,1771398645246,-267.78119668,0.00018,2]
[405891718,1771398645259,-6548.09848506,0.00018,2]
[405891719,1771398645280,-8833.54281752,0.00018,2]
[405891721,1771398645291,-636.88586202,0.00018,2]
[405891723,1771398645308,-1023.66848847,0.00018,2]
[405891725,1771398645319,-882.895,0.00018,2]
[405891727,1771398645618,-32853.2111,9.762e-05,2]
[405891728,1771398645627,-1673.95011299,0.00010192,2]
[405891729,1771398645636,-500.0,0.00010367,2]
[405891730,1771398645645,-424.854,0.0001072,2]
[405891731,1771398645654,-1003.87713345,0.00010915,2]
[405891732,1771398645663,-500.0,0.00013699,2]
[405891733,1771398645672,-412.0,0.0001372,2]
[405891734,1771398645681,-1006.00054259,0.00014247,2]
[405891735,1771398645690,-7686.54543123,0.00018,2]
[405891736,1771398645712,-983.86633961,0.00018,2]
[405891737,1771398645723,-2562.60294719,0.00018,2]
[405891739,1771398645752,-476.21626045,0.00018,2]
[405891740,1771398645783,-412.0,0.0001672,2]
[405891741,1771398645793,-1758495.34155743,0.00018,2]
[405891742,1771398645802,-7514.99024711,0.00018,2]
[405891743,1771398645813,-2898868.31802096,0.00018,2]
[405891744,1771398645823,-1194.46173794,0.00018,2]
[405891745,1771398645834,-1000.69829212,0.00018,2]
[405891746,1771398645844,-818138.71647574,0.00018,2]
[405891747,1771398645855,-2633.81434055,0.00018,2]
[405891748,1771398645870,-287013.36801986,0.00018,2]
[405891749,1771398646196,-878.45672583,0.00014046,2]
[405891750,1771398646210,-795.49338714,0.00014046,2]
[405891751,1771398646220,-10995.71237961,0.000179,2]
[405891752,1771398646230,-1787455.88614973,0.00018,2]
[405891753,1771398646243,-109314.46138715,0.00018,2]
[405891754,1771398646256,-91438.44669637,0.00018,2]
[405891755,1771398646287,-496.8431323,0.0001798,2]
[405891756,1771398646297,-16964.68758559,0.00018,2]
[405891757,1771398646309,-1149.93568638,0.00018,2]
[405891758,1771398646320,-809.92005527,0.00018,2]
[405891759,1771398646334,-1109.62727993,0.00018,2]
[405891760,1771398646346,-1208.0,0.00018,2]
[405891761,1771398646381,-51503.88405321,0.00018,2]
[405891762,1771398750515,528.62,0.00018,30]
[405891764,1771399230198,-2150.89,7.7e-05,2]
[405891765,1771399230219,-215.0,7.7e-05,2]
[405891766,1771399230240,-1465.215,8.354e-05,2]
[405891767,1771399230260,-162.986,8.354e-05,2]
[405891768,1771399230281,-300.0,8.422e-05,2]
[405891769,1771399230301,-1200.0,8.422e-05,2]
[405891770,1771399230322,-150.0,8.423e-05,2]
[405891771,1771399230342,-260.04000308,8.423e-05,2]
[405891772,1771399230364,-170.98101807,8.423e-05,2]
[405891773,1771399230385,-500.0,8.423e-05,2]
[405891774,1771399230406,-344.34138182,8.423e-05,2]
[405891775,1771399230427,-500.0,8.423e-05,2]
[405891776,1771399230451,-428.96454463,8.423e-05,2]
[405891777,1771399233115,151.0,8.421e-05,2]
[405891778,1771399233502,151.0,8.421e-05,2]
[405891779,1771399261267,300.0,8.423e-05,2]
[405891780,1771399261563,150.0,8.423e-05,2]
[405891781,1771399295432,1172.172,8.256e-05,2]
[405891782,1771399295505,162.986,8.256e-05,2]
[405891784,1771399441350,300.0,8.423e-05,2]
[405891785,1771399442107,150.0,8.423e-05,2]
[405891786,1771399501477,1200.0,8.423e-05,2]
[405891787,1771399581139,500.0,8.423e-05,2]
[405891788,1771399595595,75401.6140524,8.324e-05,2]
[405891789,1771399618894,150.0,0.00011233,120]
[405891790,1771399717391,-150.0,8.323e-05,2]
[405891791,1771399717427,-300.0,8.323e-05,2]
[405891792,1771399717463,-500.0,8.323e-05,2]
[405891793,1771399717486,-150.0,8.323e-05,2]
[405891794,1771399717498,-32.02800216,8.323e-05,2]
[405891795,1771399717508,-267.97199784,8.323e-05,2]
[405891796,1771399717523,-173.06696943,8.323e-05,2]
[405891797,1771399717532,-326.93303057,8.323e-05,2]
[405891798,1771399717547,-100.0,8.323e-05,2]
[405891808,1771399831605,-150.0,8.323e-05,2]
[405891810,1771399831615,-349.0,8.323e-05,3]
[405891811,1771399831624,-248.0,8.323e-05,3]
[405891812,1771399831634,-123.06696943,8.323e-05,2]
[405891813,1771399831644,-7979.64273375,8.324e-05,2]
[405891814,1771399831675,-1146.43337587,8.324e-05,2]
[405891815,1771399831688,-1600.0,8.324e-05,2]
[405891816,1771399831760,-1623.2451056,8.324e-05,2]
[405891817,1771399831772,-555.59417147,8.324e-05,2]
[405891820,1771399831848,-537.97245266,8.324e-05,2]
[405891827,1771399837748,-3411155.49810825,8.324e-05,2]
[405891828,1771399837758,-9612.01432737,8.423e-05,2]
[405891829,1771399837768,-213.04797785,8.423e-05,2]
[405891830,1771399837778,-1297.59034333,8.523e-05,3]
[405891831,1771399837789,-1297.59034333,8.523e-05,3]
[405891832,1771399837800,-349.0,9.043e-05,3]
[405891833,1771399837809,-248.0,9.043e-05,3]
[405891834,1771399837819,-255.0,9.155e-05,2]
[405891835,1771399837829,-263.0,9.658e-05,2]
[405891836,1771399837839,-347.0,9.678e-05,2]
[405891837,1771399837849,-1226.0,9.692e-05,2]
[405891838,1771399837859,-1194.0,9.712e-05,2]
[405891839,1771399837868,-412.0,9.747e-05,2]
[405891840,1771399837877,-1000.0,9.762e-05,2]
[405891841,1771399837886,-349.0,9.763e-05,3]
[405891842,1771399837895,-248.0,9.763e-05,3]
[405891843,1771399837904,-865.0,9.767e-05,2]
[405891844,1771399837914,-4075.03,9.908e-05,2]
[405891845,1771399837923,-309.0,9.915e-05,2]
[405891846,1771399837937,-211.0,9.989e-05,2]
[405891847,1771399837946,-664.75,0.0001,2]
[405891848,1771399837956,-151.0,0.0001,2]
[405891849,1771399837965,-151.0,0.0001,2]
[405891850,1771399837975,-151.0,0.0001,2]
[405891851,1771399837984,-151.0,0.0001,2]
[405891852,1771399837994,-151.0,0.0001,2]
[405891853,1771399838003,-151.0,0.0001,2]
[405891854,1771399838013,-151.0,0.0001,2]
[405891855,1771399838023,-151.0,0.0001,2]
[405891856,1771399838033,-151.0,0.0001,2]
[405891857,1771399838043,-151.0,0.0001,2]
[405891858,1771399838053,-151.0,0.0001,2]
[405891859,1771399838063,-151.0,0.0001,2]
[405891860,1771399838076,-151.0,0.0001,2]
[405891861,1771399838085,-151.0,0.0001,2]
[405891862,1771399838095,-151.0,0.0001,2]
[405891863,1771399838105,-151.0,0.0001,2]
[405891864,1771399838115,-151.0,0.0001,2]
[405891865,1771399838125,-151.0,0.0001,2]
[405891866,1771399838135,-151.0,0.0001,2]
[405891867,1771399838146,-151.0,0.0001,2]
[405891868,1771399838155,-151.0,0.0001,2]
[405891869,1771399838165,-151.0,0.0001,2]
[405891870,1771399838174,-151.0,0.0001,2]
[405891871,1771399838188,-151.0,0.0001,2]
[405891872,1771399838198,-151.0,0.0001,2]
[405891873,1771399838208,-151.0,0.0001,2]
[405891874,1771399838218,-151.0,0.0001,2]
[405891875,1771399838228,-151.0,0.0001,2]
[405891876,1771399838237,-151.0,0.0001,2]
[405891877,1771399838247,-151.0,0.0001,2]
[405891878,1771399838256,-151.0,0.0001,2]
[405891879,1771399838266,-151.0,0.0001,2]
[405891880,1771399838276,-151.0,0.0001,2]
[405891881,1771399838285,-151.0,0.0001,2]
[405891882,1771399838295,-151.0,0.0001,2]
[405891883,1771399838305,-151.0,0.0001,2]
[405891884,1771399838315,-151.0,0.0001,2]
[405891885,1771399838325,-151.0,0.0001,2]
[405891886,1771399838334,-151.0,0.0001,2]
[405891887,1771399838343,-151.0,0.0001,2]
[405891888,1771399838354,-1230.77981654,0.0001,2]
[405891889,1771399838363,-399.0,0.00010014,2]
[405891890,1771399838373,-350.0,0.00010034,2]
[405891891,1771399838383,-1500.0,0.00010034,2]
[405891892,1771399838393,-434.0,0.00010054,2]
[405891893,1771399838402,-433.0,0.00010071,2]
[405891894,1771399838412,-271.0486849,0.00010162,2]
[405891895,1771399838421,-150.99,0.00010191,2]
[405891896,1771399838431,-1612.57,0.00010191,2]
[405891897,1771399838441,-9999.99,0.00010191,2]
[405891898,1771399838451,-664.75,0.00010274,2]
[405891899,1771399838461,-21159.47305191,0.00010296,2]
[405891900,1771399838470,-500.0,0.00010367,2]
[405891901,1771399838480,-245.86778969,0.00010367,2]
[405891902,1771399838489,-307.32831336,0.00010367,2]
[405891903,1771399838499,-500.0,0.00010367,2]
[405891904,1771399838508,-500.0,0.00010367,2]
[405891905,1771399838518,-500.87268816,0.00010367,2]
[405891906,1771399838528,-167.33946284,0.00010367,2]
[405891907,1771399838537,-500.0,0.00010367,2]
[405891908,1771399838551,-500.0,0.00010367,2]
[405891909,1771399838560,-218.37761042,0.00010367,2]
[405891910,1771399838570,-500.0,0.00010367,2]
[405891911,1771399838580,-500.0,0.00010367,2]
[405891912,1771399838589,-306.32454784,0.00010367,2]
[405891913,1771399838599,-500.0,0.00010367,2]
[405891914,1771399838609,-500.0,0.00010367,2]
[405891915,1771399838618,-500.0,0.00010367,2]
[405891916,1771399838628,-15431.48,0.00010381,2]
[405891917,1771399838638,-349.0,0.00010483,3]
[405891918,1771399838648,-248.0,0.00010483,3]
[405891919,1771399838658,-664.75,0.00010548,2]
[405891920,1771399838668,-269.09940998,0.000107,2]
[405891921,1771399838677,-664.75,0.00010822,2]
[405891922,1771399838687,-433.45,0.00010859,2]
[405891923,1771399838697,-2951.65651746,0.000109,2]
[405891924,1771399838706,-2951.65651745,0.000109,2]
[405891925,1771399838716,-1000.0,0.00010915,2]
[405891926,1771399838726,-1000.0,0.00010915,2]
[405891927,1771399838740,-1000.0,0.00010915,2]
[405891928,1771399838750,-1000.0,0.00010915,2]
[405891929,1771399838760,-1000.0,0.00010915,2]
[405891930,1771399838769,-1000.0,0.00010915,2]
[405891931,1771399838779,-1000.0,0.00010915,2]
[405891932,1771399838789,-150.0,0.00010959,2]
[405891933,1771399838798,-250.0,0.00010998,2]
[405891934,1771399838808,-6035.69121348,0.00011,2]
[405891935,1771399838818,-2951.65651745,0.00011059,2]
[405891936,1771399838827,-736.0,0.00011078,2]
[405891937,1771399838837,-1230.77981654,0.00011089,2]
[405891938,1771399838847,-664.75,0.00011096,2]
[405891939,1771399838856,-67436.31111172,0.00011099,2]
[405891940,1771399838866,-67436.31111165,0.00011099,2]
[405891941,1771399838876,-67436.31111165,0.00011099,2]
[405891942,1771399838886,-67436.31111165,0.00011099,2]
[405891943,1771399838895,-67436.31111165,0.00011099,2]
[405891944,1771399838905,-173.62051493,0.00011144,2]
[405891945,1771399838914,-160.0,0.00011145,2]
[405891946,1771399838923,-349.0,0.00011202,3]
[405891947,1771399838936,-248.0,0.00011202,3]
[405891948,1771399838945,-14701.32,0.00011233,2]
[405891949,1771399838955,-150.0,0.00011233,2]
[405891950,1771399838964,-67436.31111165,0.00011298,2]
[405891951,1771399838974,-221.34,0.00011362,2]
[405891952,1771399838984,-208.26,0.00011362,2]
[405891953,1771399838994,-664.75,0.0001137,2]
[405891954,1771399839004,-1500.0,0.00011463,2]
[405891955,1771399839014,-1509.709324,0.00011463,2]
[405891956,1771399839024,-1500.0,0.00011463,2]
[405891957,1771399839033,-1500.0,0.00011463,2]
[405891958,1771399839043,-246.69534376,0.00011463,2]
[405891959,1771399839053,-1500.0,0.00011463,2]
[405891960,1771399839062,-433.45,0.00011463,2]
[405891961,1771399839074,-664.75,0.00011644,2]
[405891962,1771399839083,-267.291,0.00011657,2]
[405891963,1771399839093,-1275.0,0.00011657,2]
[405891964,1771399839103,-1224.539,0.00011657,2]
[405891965,1771399839114,-162.74,0.00011657,2]
[405891966,1771399839123,-634.861,0.00011657,2]
[405891967,1771399839136,-15838.89429678,0.00011747,2]
[405891968,1771399839147,-67436.31111165,0.00011873,2]
[405891969,1771399839157,-664.75615053,0.00011918,2]
[405891970,1771399839166,-349.0,0.00011922,3]
[405891971,1771399839175,-248.0,0.00011922,3]
[405891972,1771399839185,-214307.0,0.00012,2]
[405891973,1771399839194,-1865.39566179,0.00012011,2]
[405891974,1771399839204,-2000.0,0.00012011,2]
[405891975,1771399839213,-286.22847441,0.00012011,2]
[405891976,1771399839223,-1460.671579,0.00012011,2]
[405891977,1771399839233,-433.45,0.00012066,2]
[405891978,1771399839242,-1252.0,0.00012185,2]
[405891979,1771399839251,-5531.0,0.000124,3]
[405891980,1771399839261,-2951.65651745,0.00012427,2]
[405891981,1771399839270,-67436.31111165,0.00012448,2]
[405891982,1771399839279,-308.43277492,0.000125,2]
[405891983,1771399839289,-2500.0,0.00012558,2]
[405891984,1771399839299,-349.0,0.00012642,3]
[405891985,1771399839308,-248.0,0.00012642,3]
[405891986,1771399839318,-433.45,0.00012669,2]
[405891987,1771399839327,-5531.0,0.000128,5]
[405891988,1771399839337,-271.5,0.00012877,2]
[405891989,1771399839346,-150000.0,0.000129,2]
[405891990,1771399839356,-198.094,0.00012999,2]
[405891991,1771399839366,-5623.94740036,0.00013,2]
[405891992,1771399839375,-638.51878363,0.00013,15]
[405891993,1771399839384,-500.0,0.00013,2]
[405891994,1771399839394,-500.0,0.00013,2]
[405891995,1771399839403,-500.0,0.00013,2]
[405891996,1771399839412,-500.0,0.00013,2]
[405891997,1771399839422,-500.0,0.00013,2]
[405891998,1771399839431,-500.0,0.00013,2]
[405891999,1771399839440,-500.0,0.00013,2]
[405892000,1771399839450,-500.0,0.00013,2]
[405892001,1771399839459,-500.0,0.00013,2]
[405892002,1771399839468,-500.0,0.00013,2]
[405892003,1771399839478,-500.0,0.00013,2]
[405892004,1771399839487,-1300.0,0.00013,2]
[405892005,1771399839497,-1300.0,0.00013,2]
[405892006,1771399839506,-2200.0,0.00013,2]
[405892007,1771399839516,-1300.0,0.00013,2]
[405892008,1771399839535,-2200.0,0.00013,2]
[405892009,1771399839545,-1300.0,0.00013,2]
[405892010,1771399839555,-1000.0,0.00013,2]
[405892011,1771399839564,-2200.0,0.00013,2]
[405892012,1771399839574,-1300.0,0.00013,2]
[405892013,1771399839584,-500.0,0.00013,2]
[405892014,1771399839593,-1000.0,0.00013,2]
[405892015,1771399839603,-1300.0,0.00013,2]
[405892016,1771399839612,-1000.0,0.00013,2]
[405892017,1771399839622,-2200.0,0.00013,2]
[405892023,1771399840058,-1300.0,0.00013,2]
[405892024,1771399840071,-1000.0,0.00013,2]
[405892025,1771399840081,-2200.0,0.00013,2]
[405892026,1771399840091,-1300.0,0.00013,2]
[405892027,1771399840101,-1000.0,0.00013,2]
[405892028,1771399840111,-2200.0,0.00013,2]
[405892029,1771399840120,-1300.0,0.00013,2]
[405892030,1771399840131,-1000.0,0.00013,2]
[405892031,1771399840144,-5000.0,0.00013,2]
[405892032,1771399840154,-2200.0,0.00013,2]